Cogmind - Beta 15 @@@ ROGUE MODE // 2025.08.15 @ 03:41:49 Player: Peregrine Result: Self-destructed Performance ------------- Evolutions (2) 1000 Regions Visited (3) 600 Robots Destroyed (55) 275 Value Destroyed (1290) 1290 Prototype IDs (2) 40 Alien Tech Used (0) 0 Bonus (0) 0 TOTAL SCORE: 3205 Bonus ------- None Cogmind --------- Core Integrity 131/550 Matter 290/300 Energy 100/100 System Corruption 1% Temperature Cool (0) Movement Rolling (90) Location -8/Materials Parts ------- > --- POWER (1) -------- (None) > --- PROPULSION (4) --- Armored Wheel > --- UTILITY (4) ------ Heat Sink > --- WEAPON (2) ------- (None) > --- INVENTORY (5) ---- Improved Ion Engine Improved Ion Engine High-capacity Matter Pod (200) Improved Light Cannon Mini Grenade Launcher Peak State ------------ > --- POWER ------------ Reinforced Ion Engine > --- PROPULSION ------- Wheel Wheel Compact Wheel > --- UTILITY ---------- Heat Sink Improved Heat Sink Huge Storage Unit Light Armor Plating > --- WEAPON ----------- Improved Medium Laser Advanced Beam Cannon > --- INVENTORY -------- Improved Ion Engine Improved Ion Engine Aluminum Leg Heat Sink High-capacity Matter Pod Weight Redist. System Improved Medium Laser Light Cannon Mini Grenade Launcher [Rating: 18] Favorites ----------- Power Ion Engine Engine Ion Engine Propulsion Wheel Treads Light Treads Leg Aluminum Leg Wheel Wheel Utility Heat Sink Device Heat Sink Storage Huge Storage Unit Protection Light Armor Plating Weapon Improved Medium Laser Energy Gun Improved Medium Laser Energy Cannon Advanced Beam Cannon Ballistic Gun Light Assault Rifle Ballistic Cannon Light Cannon Build | -11 -10 -9 -8 ------- Run | Yrd Mat Mat Mat Slots Evolved 4 | . . 2 2 Power . | . . . . Propulsion 2 | . . . 2 Utility 2 | . . 2 . Weapon . | . . . . Parts Attached 42 | . 16 19 7 Power 4 | . 1 2 1 Engine 4 | . 1 2 1 Core . | . . . . Reactor . | . . . . Propulsion 17 | . 8 5 4 Treads 2 | . 2 . . Leg 1 | . 1 . . Wheel 14 | . 5 5 4 Hover . | . . . . Flight . | . . . . Utility 11 | . 3 7 1 Device 5 | . 1 3 1 Storage 3 | . 2 1 . Processor . | . . . . Hackware . | . . . . Protection 3 | . . 3 . Artifact . | . . . . Weapon 10 | . 4 5 1 Energy Gun 6 | . 3 3 . Energy Cannon 1 | . . 1 . Ballistic Gun 2 | . 1 1 . Ballistic Cannon 1 | . . . 1 Launcher . | . . . . Special Weapon . | . . . . Impact Weapon . | . . . . Slashing Weapon . | . . . . Piercing Weapon . | . . . . Special Melee Weapon . | . . . . Unidentified Prototypes 2 | . . 2 . Parts Lost 25 | . 7 5 13 Power 3 | . 1 1 1 Propulsion 11 | . 3 2 6 Utility 5 | . 1 2 2 Weapon 6 | . 2 . 4 Highest Loss Streak 12 | . 4 3 12 To Critical Strikes . | . . . . Average Backups 7 | 6 5 8 6 Power 1 | 1 1 1 2 Propulsion 1 | 4 1 2 . Utility 1 | . 1 2 1 Weapon 2 | 1 1 2 2 Tool/Special . | . . . . Unused Backups 10 | . 4 2 4 Power 4 | . 1 1 2 Propulsion 1 | . 1 . . Utility 2 | . 1 . 1 Weapon 3 | . 1 1 1 Tool/Special . | . . . . Average Slot Usage (%) 78 | . 72 89 59 Engine 7 | . 5 10 6 Treads 3 | . 6 . . Leg 1 | . 2 . . Wheel 15 | . 11 20 14 Device 11 | . 3 18 15 Storage 11 | . 14 11 6 Protection 3 | . . 7 4 Energy Gun 15 | . 15 17 5 Energy Cannon 1 | . . . 6 Ballistic Gun 6 | . 11 3 . Peak Build Rating 18 | 6 7 15 18 Average Rating 8 | 6 5 12 11 On Entrance 8 | 6 6 6 15 Naked Turns . | . . . . Heaviest Build 102 | 13 90 99 102 Greatest Support 46 | 20 26 20 46 Greatest Overweight (x) 9 | . 8 9 9 Average Overweight (x) 3 | . 2 4 1 Largest Inventory Capacity 25 | 8 25 25 25 Average Capacity 23 | 8 23 25 19 Most Carried 12 | 6 8 12 9 Average Carried 7 | 6 5 8 6 Final Capacity 25 | 8 25 25 5 Final Carried 9 | 6 7 9 5 Class Distribution -------------------- 54% | Mutant 45% | Scavenger-Mutant Dominant Class ---------------- Mutant | -10/Materials Scavenger-Mutant | -9/Materials Scavenger-Mutant | -8/Materials Resources | -11 -10 -9 -8 ----------- Run | Yrd Mat Mat Mat Matter Collected 942 | 200 421 233 88 Remotely . | . . . . Salvage Created 1911 | . 624 926 361 Parts 129 | . 52 64 13 Haulers Intercepted 5 | . 1 4 . Recyclers Shooed 1 | . 1 . . Parts Field Recycled . | . . . . Retrieved Matter . | . . . . Parts Self-Destructed . | . . . . Prevented . | . . . . Kills | -11 -10 -9 -8 ------- Run | Yrd Mat Mat Mat Combat Hostiles Destroyed 37 | . 17 14 6 Guns 35 | . 17 14 4 Cannons 2 | . . . 2 Classes Destroyed 10 | . 6 3 1 Worker 5 | . 1 4 . Builder 5 | . 3 . 2 Hauler 5 | . 1 4 . Operator 1 | . 1 . . Watcher 2 | . . 2 . Swarmer 9 | . 9 . . Grunt 18 | . 8 7 3 Brawler 2 | . . 1 1 Sentry 7 | . . 6 1 Heavy 1 | . . . 1 Best Kill Streak 4 | . 4 4 4 Combat Bots Only 3 | . 3 3 3 Max Kills in Single Turn 1 | . 1 1 1 Gunslinging . | . . . . Exploded . | . . . . Melee . | . . . . Uniques/NPCs Destroyed . | . . . . Combat | -11 -10 -9 -8 -------- Run | Yrd Mat Mat Mat Hostile Shots Fired 281 | . 99 78 104 Missed 74 | . 16 28 30 Hits 207 | . 83 50 74 Melee 2 | . . . 2 Projectile 205 | . 83 50 72 Critical Strikes 6 | . . 2 4 Damage Taken 2919 | . 778 698 1443 Core 748 | . 220 109 419 Absorbed by Shields . | . . . . Core Remaining (%) 61 | 100 12 72 . Volleys Fired 173 | . 84 58 31 Largest 2 | . 2 2 2 Hottest 124 | . 90 124 124 Shots Fired 333 | . 156 116 61 Gun 293 | . 156 114 23 Cannon 40 | . . 2 38 Launcher . | . . . . Special . | . . . . Kinetic 95 | . 61 27 7 Thermal 218 | . 75 89 54 Explosive . | . . . . Electromagnetic 20 | . 20 . . Robot Hit Streak 15 | . 8 14 15 Robot Miss Streak 7 | . 7 4 4 Penetration Max . | . . . . Secondary Targets 2 | . 1 1 . Max Gunslinging Chain 1 | . 1 1 . Shots Hit Robots 199 | . 79 80 40 Core Hits 89 | . 38 35 16 Critical Kills 1 | . 1 . . Critical Parts Destroyed . | . . . . Critical Strikes 13 | . 3 8 2 Burn 11 | . 2 7 2 Destroy 2 | . 1 1 . Melee Attacks . | . . . . Impact . | . . . . Slashing . | . . . . Piercing . | . . . . Sneak Attacks . | . . . . Combat Hostiles . | . . . . Follow-up Attacks . | . . . . Damage Inflicted 2893 | . 843 1233 817 Guns 2397 | . 843 1233 321 Cannons 496 | . . . 496 Explosions . | . . . . Melee . | . . . . Ramming . | . . . . Kinetic 525 | . 267 190 68 Thermal 2255 | . 463 1043 749 Explosive . | . . . . Electromagnetic 113 | . 113 . . Impact . | . . . . Slashing . | . . . . Piercing . | . . . . Highest Corruption 1 | . . . 1 Average Corruption 1 | . . . 1 Corruption Purged . | . . . . Corruption Blocked . | . . . . Effects 1 | . . . 1 Message Errors 1 | . . . 1 Overload Shots . | . . . . Overflow Damage . | . . . . Projectiles . | . . . . Explosions . | . . . . Melee . | . . . . Knockbacks 2 | . . . 2 Impact . | . . . . Kinetic 2 | . . . 2 Secondary . | . . . . Self-Inflicted Damage . | . . . . Shots . | . . . . Rammed . | . . . . Targets Rammed . | . . . . Kicked . | . . . . Crushed . | . . . . Highest Temperature 268 | . 268 35 127 Average Temperature 44 | . 50 15 60 Received Heat Transfer 1116 | . 252 333 531 Effects 2 | . 2 . . Energy Bleed 1 | . 1 . . Interference 1 | . 1 . . Siege Activations . | . . . . Martial Activations . | . . . . Shielding Activations . | . . . . Robots Disrupted . | . . . . Combat Hostiles . | . . . . Robots Corrupted . | . . . . Combat Hostiles . | . . . . Parts Fried . | . . . . Impact Corruptions . | . . . . Robots Melted . | . . . . Combat Hostiles . | . . . . Parts Melted 16 | . 2 7 7 Heat Transferred 5832 | . 1329 2875 1628 Parts Sabotaged . | . . . . Parts Stolen . | . . . . Parts Stripped . | . . . . Power Chain Reactions . | . . . . Alert | -11 -10 -9 -8 ------- Run | Yrd Mat Mat Mat Maximum Alert Level . | . . . . Low Security (%) 100 | 100 100 100 100 Level 1 . | . . . . Level 2 . | . . . . Level 3 . | . . . . Level 4 . | . . . . Level 5 . | . . . . High Security . | . . . . Max Security . | . . . . Peak Influence 186 | . 186 147 86 Initial 21 | . . 21 . Average 66 | . 95 49 24 Influence Increases 1181 | . 493 432 256 Destroy 0b10 Robot/C 740 | . 340 280 120 Destroy 0b10 Robot/NC 90 | . 30 50 10 Destroy Leader 194 | . 72 92 30 Successful Hack 19 | . 6 7 6 Destroy Structure 3 | . . 3 . Partial Spotted 15 | . . . 15 Lose Combat Pursuer 120 | . 45 . 75 Influence Decreases 1115 | . 442 483 190 Entered New Map 30 | . . 30 . Time Decay 762 | . 372 315 75 Lost Part 223 | . 70 48 105 Lost Ally 10 | . . . 10 Purge Threat 90 | . . 90 . Squads Dispatched 7 | . 4 . 3 Investigation 3 | . 2 . 1 Extermination . | . . . . Reinforcement 4 | . 2 . 2 Assault . | . . . . Garrison . | . . . . Intercept . | . . . . Searches Triggered . | . . . . Construction Impeded 1 | . . . 1 Haulers Reinforced . | . . . . Active Scanning Responses . | . . . . Cargo Convoy Interrupts . | . . . . Stealth | -11 -10 -9 -8 --------- Run | Yrd Mat Mat Mat Distress Signals 5 | . 1 2 2 Communications Jammed . | . . . . Distress Signals . | . . . . Times Spotted 69 | . 35 19 15 Peak Tracking Total 9 | . 4 4 9 Tactical Retreats 3 | . 2 . 1 Traps | -11 -10 -9 -8 ------- Run | Yrd Mat Mat Mat Traps Triggered 2 | . 1 . 1 Indirectly . | . . . . Trap Hack Attempts . | . . . . Triggered . | . . . . Disarmed . | . . . . Reprogrammed . | . . . . Reused . | . . . . Traps Extracted . | . . . . Installed . | . . . . Triggered . | . . . . Machines | -11 -10 -9 -8 ---------- Run | Yrd Mat Mat Mat Machines Disabled . | . . . . Max in Single Turn . | . . . . Machines Repaired . | . . . . Machines Dismantled . | . . . . Machines Sabotaged . | . . . . Overloaded Fab Kills . | . . . . Hacking | -11 -10 -9 -8 --------- Run | Yrd Mat Mat Mat Machines Accessed 8 | . 3 3 2 Terminals 6 | . 2 2 2 Fabricators . | . . . . Repair Stations . | . . . . Recycling Units 1 | . 1 . . Scanalyzers 1 | . . 1 . Garrison Access . | . . . . Total Hacks 28 | . 9 15 4 Successful 14 | . 2 11 1 Failed 14 | . 7 4 3 Catastrophic 2 | . 1 . 1 Database Lockouts . | . . . . Manual 10 | . 6 . 4 Terminals 16 | . 6 6 4 Fabricators . | . . . . Repair Stations . | . . . . Recycling Units 3 | . 3 . . Scanalyzers 9 | . . 9 . Garrison Access . | . . . . Terminal Hacks 3 | . 1 2 . Robot Analysis 1 | . . 1 . Unreport Threat 1 | . . 1 . Zone Layout 1 | . 1 . . Fabricator Hacks . | . . . . Repair Station Hacks . | . . . . Recycling Unit Hacks 1 | . 1 . . Retrieve Components 1 | . 1 . . Scanalyzer 9 | . . 9 . Insert Component 4 | . . 4 . Analyze 5 | . . 5 . Garrison Access Hacks . | . . . . Unauthorized Hacks 1 | . . . 1 Terminals 1 | . . . 1 Assimilate 1 | . . . 1 Fabricators . | . . . . Repair Stations . | . . . . Recycling Units . | . . . . Scanalyzers . | . . . . Garrison Access . | . . . . Data Cores Recovered . | . . . . Used . | . . . . Hacking Detections 8 | . 3 3 2 Full Trace Events 1 | . 1 . . Feedback Events . | . . . . Feedback Blocked . | . . . . Robot Schematics Acquired . | . . . . Robots Built . | . . . . Authchips . | . . . . Time . | . . . . Total Robot Build Rating . | . . . . Part Schematics Acquired 4 | . . 4 . Parts Built . | . . . . Authchips . | . . . . Time . | . . . . Total Part Build Rating . | . . . . Parts Repaired . | . . . . Time . | . . . . Parts Recycled . | . . . . Recycled Matter . | . . . . Retrieved Matter . | . . . . Retrieved Components 10 | . 10 . . Parts Scanalyzed 4 | . . 4 . Part Schematics Acquired 4 | . . 4 . Parts Damaged . | . . . . Bothacking | -11 -10 -9 -8 ------------ Run | Yrd Mat Mat Mat Used RIF Installer . | . . . . Robots Hacked . | . . . . Non-combat . | . . . . Combat . | . . . . Robot Hacks Applied . | . . . . Relay Couplers Released . | . . . . Fabnet Peak Effective % . | . . . . Robots Rewired . | . . . . Allies Hacked . | . . . . Hacks Repelled . | . . . . Allies | -11 -10 -9 -8 -------- Run | Yrd Mat Mat Mat Total Allies 1 | . . . 1 Largest Group 1 | . . . 1 Highest-Rated Group 10 | . . . 10 Highest-Rated Ally 10 | . . . 10 Total Orders . | . . . . Ally Attacks . | . . . . Total Damage . | . . . . Kills . | . . . . Allies Corrupted . | . . . . Allies Melted . | . . . . Intel | -11 -10 -9 -8 ------- Run | Yrd Mat Mat Mat Active Infowar (turns) . | . . . . Robot Analysis Total 1 | . . 1 . Derelict Logs Recovered . | . . . . Drone Launches . | . . . . Drone Recoveries . | . . . . Exploration | -11 -10 -9 -8 ------------- Run | Yrd Mat Mat Mat Turns Passed 2050 | 8 913 872 257 Spaces Moved 829 | 7 264 383 175 Core 93 | . . . 93 Treads 77 | . 77 . . Legs 61 | 7 49 . 5 Wheels 598 | . 138 383 77 Hover . | . . . . Flight . | . . . . Fastest Speed 50 | 120 105 140 50 Average Speed 159 | 120 235 143 83 Slowest Speed 480 | 120 480 215 215 Overloaded Moves . | . . . . Propulsion Burnouts . | . . . . Robots Hopped . | . . . . Potential Cave-ins . | . . . . Cave-ins Triggered . | . . . . Exploration Rate (%) 26 | 2 35 43 27 Regions Visited 3 Branch Regions . Pre-discovered Areas . | . . . . Known Exits Taken . | . . . . Unknown Exits Taken 3 | 1 1 1 . Scrap Searched . | . . . . Spaces Dug . | . . . . Terrain Destroyed . | . . . . Melee . | . . . . Projectile . | . . . . AOE . | . . . . Terrain Rammed . | . . . . Walls Destroyed . | . . . . Machines Disabled . | . . . . Actions | -11 -10 -9 -8 --------- Run | Yrd Mat Mat Mat Total 1232 | 6 411 592 223 Wait 124 | . 25 98 1 Move 826 | 6 263 382 175 Hop . | . . . . Pick Up 39 | . 13 22 4 Fast Attach 3 | . 1 . 2 Attach 24 | . 10 9 5 Detach 1 | . 1 . . Swap 21 | . 8 11 2 Drop 21 | . 6 12 3 Fire 173 | . 84 58 31 Melee . | . . . . Ram . | . . . . Kick . | . . . . Crush . | . . . . Escape Stasis . | . . . . Rewire . | . . . . Trap . | . . . . Miscellaneous . | . . . . Route ------- -11/Scrapyard -10/Materials -9/Materials -8/Materials (discovered 1 exit: [*Fac]) History --------- Turn | Location | Event 1 | -11/Scrapyard | Discovered new exit (range 3) 9 | -11/Scrapyard | Entered Materials 267 | -10/Materials | Discovered new exit (range 12) 298 | -10/Materials | Core integrity fell below 50% 316 | -10/Materials | Build established: Mutant 349 | -10/Materials | Lost 4 parts (1p1n2w) 439 | -10/Materials | Core integrity fell below 20% 470 | -10/Materials | Lost 3 parts (2n1u) 922 | -10/Materials | Entered another Materials area 922 | -9/Materials | Evolved 2 slots: Utility x2 1206 | -9/Materials | Lost 3 parts (1p1n1u) 1305 | -9/Materials | Build established: Scavenger-Mutant 1762 | -9/Materials | Discovered new exit (range 16) 1794 | -9/Materials | Entered another Materials area 1794 | -8/Materials | Evolved 2 slots: Propulsion x2 1979 | -8/Materials | Core integrity fell below 50% 2017 | -8/Materials | Lost 12 parts (1p5n2u4w) 2039 | -8/Materials | Discovered new exit (range 16) 2051 | -8/Materials | Self-destructed Last Messages --------------- 01975_ Imp. Heat Sink destroyed. 01975_ Adv. Beam Cannon destroyed. 01977_ Dropped Huge Storage Unit. 01978_ Acquired Wheel. 01979_ T-07 Excavator is excavating. 01980_ Wheel destroyed. 01980_ Acquired 25 matter. 01986_ Aluminum Leg destroyed. 01993_ K-01 Serf collects debris. 02000_ O-16 Technician: "IFF HANDSHAKE FAILED. SECURING TERMINAL." 02004_ Connecting with Terminal... 02004_ Current location identified: Materials >>Trojan(Assimilate) Trojan loaded successfully. Testing... System interface override in place. 02023_ Connecting with Terminal... 02031_ Acquired Imp. Light Cannon. 02033_ Acquired Arm. Wheel. 02039_ EXIT=FOUND Map ----- +----------------------------------------------------+ | ?????????# ?????????????# #??????????????? | | ?????????# ?????????????# "T" #??????????????? | | ?????????# #????????????# """ ##?????????????? | | ?????????# #????????????# #?????????????? | | ?????????# #????????????##+########???????????? | | ?????????# #?????????????# !#?????? | | ?????????# #?????????????# #####+##???????????? | | ?????????# ############??# #??????????????????? | | ?????????# ## #??# #??????????????????? | | ????????## ## ! = #??# #??????????????????? | | ????????# # #### #??????????????????? | | ????????# # """ """ + #??????????????????? | | ????????# T + """ """ #### #??????????????????? | | ????????# # """ """ #??# #??????????????????? | | ????????# /# #??# ??????????????????? | | ????????## ## [ #??####?????????????????? | | ?????????# ############???????????????????????? | | ?????????# #??????????????????????????????????? | | ?????????# #??????????????????????????????????? | | ?????????# #??????????????????????????????????? | | ?????????# #??????????????????????????????????? | | ?????????# ###################????????????????? | | ?????????# #????????????????? | | ?????????# < #????????????????? | | ?????????# #????????????????? | | ?????????####+###########@######????????????????? | | ??????????# #????? ????????????????????? | | ??????????# ! #??? ??????????????????? | | ??????????# #??# """ #?????????????????? | | ??????????# #??# """""#?????????????????? | | ??????????# #??# """""#?????????????????? | | ??????????# #??# """""#?????????????????? | | ??????????########??# ""????????????????????? | | ????????????????????# [ ?????????????????????? | | ????????????????????######??????????????????????? | | ????????????????????????????????????????????????? | | ????????????????????????????????????????????????? | | ????????????????????????????????????????????????? | | | | | | | | | | | | | | | | | | | | | | | | | +----------------------------------------------------+ Best States ------------- Heat Dissipation 55 Energy Generation 12 Energy Capacity 265 Matter Stores 300 Matter Capacity 300 Sight Range 16 Terrain Scan Density 10 Armor Coverage 150 Evasion (%) 55 Recoil Reduction 2 Item Schematics ----------------- Weight Redist. System | -9/Materials | Scanalyzed Wheel | -9/Materials | Scanalyzed Lgt. Ion Engine | -9/Materials | Scanalyzed Lgt. Cannon | -9/Materials | Scanalyzed Robot Schematics ------------------ None Fabricated ------------ Nothing Repaired ---------- Nothing Alien Tech Used ----------------- None Achievements -------------- None Challenges ------------ None Game ------ Seed OvertunedThermoelectricPod Manual? 0 Play Time 00:16:10 Cumulative 123.0 hours Start 2025.08.12 @ 23:31:23 End 2025.08.15 @ 03:41:49 Sessions 2 Manual Loads 0 Difficulty Rogue Special Mode None Game No. 153 Rogue 138 Adventurer 15 Explorer 0 Win Type - Total 4 Types 3/0/1/0/0/0/0/0/0/0 Lore% 39 Gallery% 61 Achievement% 57 Wizard Run 0 Options --------- Layout 0 ASCII 0 Keyboard 0 Movement Mouse Keybinds 0 Fullscreen 2 Font 36/Smallcaps Map View 76x50 Zoom Use 0% Tactical HUD 1 Map Filters NONE Filters NONE Steam 1 RUN: 9f028ab2-edeb-4ac8-b1e3-4b61a65bdec2